bitfinex/quotes_BTCUSD_20251224
["timestamp","ask_amount","ask_price","bid_price","bid_amount"]
[1766584352047,0.0001997,87283.0,87282.0,0.05728558]
[1766584355214,0.0001997,87283.0,87281.0,0.05728562]
[1766584355899,0.0001997,87283.0,87282.0,0.05728558]
[1766584358987,1e-08,87283.0,87282.0,0.05728558]
[1766584361602,1e-08,87283.0,87282.0,0.63277558]
[1766584362521,1e-08,87283.0,87279.0,0.05728696]
[1766584363491,1e-08,87283.0,87280.0,0.01145737]
[1766584363749,1e-08,87283.0,87280.0,0.06874413]
[1766584364348,1e-08,87283.0,87280.0,0.01145737]
[1766584364549,0.00055,87280.0,87277.0,0.06874621]
[1766584364711,0.00055,87280.0,87279.0,0.05728754]
[1766584365118,1e-08,87283.0,87280.0,0.01145737]
[1766584365659,1e-08,87283.0,87280.0,0.06874383]
[1766584365968,1e-08,87283.0,87281.0,0.05728622]
[1766584366270,1e-08,87283.0,87282.0,0.05728558]
[1766584366464,1e-08,87283.0,87281.0,0.05728622]
[1766584367033,0.01148,87294.0,87283.0,0.01145698]
[1766584367375,0.01148,87294.0,87282.0,0.06874217]
[1766584367783,0.01148,87294.0,87283.0,0.01145698]
[1766584368029,0.01148,87294.0,87284.0,0.01145685]
[1766584368461,0.01148,87294.0,87285.0,0.01145672]
[1766584369011,0.01148,87294.0,87284.0,0.068741]
[1766584369192,0.00055,87284.0,87281.0,0.0687429]
[1766584369401,0.00055,87284.0,87282.0,0.05728497]
[1766584369804,0.01148,87294.0,87283.0,0.01145698]
[1766584369986,0.01148,87294.0,87284.0,0.01145685]
[1766584370215,0.01148,87294.0,87283.0,0.01145698]
[1766584370565,0.01148,87294.0,87283.0,0.06874173]
[1766584370712,0.01148,87294.0,87284.0,0.01145685]
[1766584371106,0.01148,87294.0,87283.0,0.06874173]
[1766584371361,0.01148,87294.0,87282.0,0.01145711]
[1766584371737,0.01148,87294.0,87283.0,0.06874167]
[1766584371934,0.01148,87294.0,87283.0,0.01145698]
[1766584372152,0.01148,87294.0,87281.0,0.01145724]
[1766584372344,0.01148,87294.0,87281.0,0.06874293]
[1766584372544,0.01148,87294.0,87283.0,0.06874187]
[1766584372776,0.01148,87294.0,87284.0,0.01145685]
[1766584372975,0.01148,87294.0,87283.0,0.06874187]
[1766584373383,0.01148,87294.0,87284.0,0.01145685]
[1766584373956,0.01148,87294.0,87283.0,0.06874187]
[1766584375093,0.01148,87294.0,87283.0,0.01145698]
[1766584375332,0.01148,87294.0,87282.0,0.0687422]
[1766584375528,0.01148,87294.0,87282.0,0.01145711]
[1766584376031,0.01148,87294.0,87282.0,0.06874248]
[1766584376230,0.01148,87294.0,87280.0,0.01145737]
[1766584376459,0.01148,87294.0,87282.0,0.05728558]
[1766584376654,0.01148,87294.0,87282.0,0.06874269]
[1766584376899,0.01148,87294.0,87283.0,0.01145698]
[1766584377379,0.01148,87294.0,87282.0,0.06874269]
[1766584378301,0.01148,87294.0,87282.0,0.01145711]
[1766584379962,0.01148,87294.0,87280.0,0.06874426]
[1766584380145,0.01148,87294.0,87282.0,0.01145711]
[1766584380348,0.01148,87294.0,87281.0,0.01145724]
[1766584380885,0.01148,87294.0,87282.0,0.01119257]
[1766584381804,0.01148,87294.0,87283.0,0.01145698]
[1766584382567,0.01148,87294.0,87282.0,0.06874241]
[1766584382973,0.01148,87294.0,87283.0,0.01145698]
[1766584383182,0.01148,87294.0,87283.0,0.06874184]
[1766584383398,0.01148,87294.0,87284.0,0.01145685]
[1766584383607,0.01148,87294.0,87284.0,0.06874108]
[1766584383934,0.03078186,87299.0,87286.0,0.01145659]
[1766584384136,0.01148,87295.0,87289.0,0.52832619]
[1766584384339,0.01148,87297.0,87289.0,0.52832619]
[1766584384547,0.01148,87297.0,87286.0,0.01145659]
[1766584384745,0.01148,87297.0,87287.0,0.01145645]
[1766584384746,0.00025127,87296.0,87287.0,0.01145645]
[1766584384960,0.00025127,87296.0,87289.0,0.01145619]
[1766584385323,0.00025127,87296.0,87292.0,0.0114558]
[1766584385590,0.00025127,87296.0,87288.0,0.01145632]
[1766584385591,0.00025127,87296.0,87288.0,0.06873666]
[1766584385797,2.7e-07,87296.0,87292.0,0.06873481]
[1766584386001,2.7e-07,87296.0,87292.0,0.0114558]
[1766584386202,2.7e-07,87296.0,87292.0,0.06873427]
[1766584386715,2.7e-07,87296.0,87293.0,0.06873394]
[1766584387492,0.0590205,87305.0,87299.0,0.01145488]
[1766584387493,0.02462549,87305.0,87299.0,0.01145488]
[1766584387855,0.01148,87305.0,87301.0,0.01145462]
[1766584388033,0.01148,87305.0,87300.0,0.06872826]
[1766584388590,0.01148,87305.0,87301.0,0.01145462]
[1766584388791,0.0002,87306.0,87299.0,0.06872908]
[1766584389000,0.0002,87306.0,87304.0,0.51628323]
[1766584389424,0.000549,87304.0,87296.0,0.51687]
[1766584389627,0.000549,87304.0,87290.0,0.88117211]
[1766584389783,0.0002,87306.0,87295.0,0.11922299]
[1766584389989,0.0002,87306.0,87295.0,0.13070299]
[1766584390987,0.0002,87306.0,87295.0,1e-06]
[1766584391237,0.01148,87305.0,87290.0,0.01148]
[1766584391407,0.01148,87305.0,87290.0,0.37578211]
[1766584392203,0.01148,87305.0,87290.0,0.36430211]
[1766584393599,0.00025121,87304.0,87290.0,0.36430211]
[1766584394661,0.00025121,87304.0,87290.0,0.88117211]
[1766584395499,0.00025121,87304.0,87291.0,0.51687]
[1766584395713,0.00025121,87304.0,87292.0,0.5283258]
[1766584395926,0.00025121,87304.0,87293.0,0.51687]
[1766584396541,0.00025121,87304.0,87294.0,0.01145554]
[1766584398482,0.00025121,87304.0,87294.0,0.58560296]
[1766584398731,0.00025121,87304.0,87294.0,0.51687]
[1766584398869,0.00025121,87304.0,87295.0,0.0114554]
[1766584399217,1.21e-06,87304.0,87298.0,0.51687]
[1766584399517,0.0002,87306.0,87298.0,0.51687]
[1766584402938,0.0002,87306.0,87295.0,0.13070299]
[1766584403351,0.0002,87306.0,87296.0,0.01145527]
[1766584404140,0.0002,87306.0,87296.0,0.06873158]
[1766584404491,0.0002,87306.0,87295.0,0.18795528]
[1766584404765,0.0002,87306.0,87296.0,0.05727639]
[1766584405618,0.0002,87306.0,87296.0,0.06873166]
[1766584407669,0.0002,87306.0,87297.0,0.01145514]
[1766584408266,0.0002,87306.0,87297.0,0.61496084]
[1766584408464,0.0002,87317.0,87302.0,0.54623]
[1766584408669,0.0002,87317.0,87303.0,0.55768436]
[1766584408868,0.00030676,87317.0,87303.0,0.54623]
[1766584409482,0.00030676,87317.0,87303.0,0.55768436]
[1766584409707,0.01178676,87317.0,87303.0,0.55768436]
[1766584409928,0.01178676,87317.0,87305.0,0.54623]
[1766584411861,0.01178676,87317.0,87305.0,0.545829]
[1766584412018,0.01178676,87317.0,87303.0,0.01148]
[1766584412219,0.00055,87303.0,87300.0,0.01148]
[1766584412483,0.04256862,87317.0,87300.0,0.01148]
[1766584413503,0.01148,87316.0,87301.0,0.54623]
[1766584413678,0.01148,87316.0,87301.0,0.54633676]
[1766584414050,0.01148,87316.0,87301.0,0.39777675]
[1766584415799,0.00025116,87312.0,87301.0,0.39777675]
[1766584416621,0.00025116,87312.0,87301.0,0.00010676]
[1766584424785,0.00520394,87314.0,87301.0,0.00010676]
[1766584429102,0.00520394,87314.0,87302.0,0.53923]
[1766584432041,0.00520394,87314.0,87301.0,0.00010676]
[1766584437673,5.521e-05,87300.0,87299.0,0.01148]
[1766584437918,2.1e-07,87300.0,87299.0,0.01148]
[1766584438870,2.1e-07,87300.0,87298.0,0.02293501]
[1766584440695,0.00520394,87299.0,87298.0,0.02293501]
[1766584440874,0.00470994,87299.0,87298.0,0.01145501]
[1766584441080,0.00470994,87299.0,87298.0,0.02293501]
[1766584441860,0.00470994,87299.0,87298.0,0.08021009]
[1766584442205,2.1e-07,87300.0,87299.0,0.50849]
[1766584443413,0.02469824,87313.0,87299.0,0.50849]
[1766584443625,0.0001067,87313.0,87299.0,0.50849]
[1766584443787,0.02480494,87313.0,87299.0,0.50849]
[1766584443986,0.0001067,87313.0,87299.0,0.51997]
[1766584444207,0.02480494,87313.0,87299.0,0.51997]
[1766584444410,0.0001067,87313.0,87299.0,0.51997]
[1766584444608,0.02480494,87313.0,87299.0,0.51997]
[1766584444810,0.0001067,87313.0,87299.0,0.51997]
[1766584445016,0.02480494,87313.0,87299.0,0.51997]
[1766584445191,0.0001067,87313.0,87299.0,0.53142488]
[1766584445412,0.02480494,87313.0,87299.0,0.53142488]
[1766584445752,0.0001067,87313.0,87299.0,0.53142488]
[1766584445872,0.02480494,87313.0,87299.0,0.51994488]
[1766584446254,0.0001067,87313.0,87299.0,0.53142488]
[1766584446387,0.02480494,87313.0,87300.0,0.01145475]
[1766584446590,0.0001067,87313.0,87300.0,0.01145475]
[1766584446789,0.02480494,87313.0,87300.0,0.01145475]
[1766584446995,0.0001067,87313.0,87300.0,0.01145475]
[1766584447191,0.02480494,87313.0,87300.0,0.06872836]
[1766584447405,0.0001067,87313.0,87302.0,0.01145449]
[1766584448653,0.0001067,87313.0,87302.0,0.06872678]
[1766584449210,0.0001067,87313.0,87303.0,0.01145436]
[1766584449624,0.0001067,87313.0,87304.0,0.01145422]
[1766584449822,0.0001067,87313.0,87303.0,0.06872585]
[1766584450023,0.0001067,87313.0,87304.0,0.01145422]
[1766584450481,0.0001067,87313.0,87303.0,0.01145436]
[1766584451262,0.0001067,87313.0,87302.0,0.06872678]
[1766584451573,0.0001067,87313.0,87303.0,0.01145436]
[1766584451781,0.0001067,87313.0,87304.0,0.01145422]
[1766584451984,0.0001067,87313.0,87306.0,0.05726933]
[1766584452160,0.0001067,87313.0,87305.0,0.06872449]
[1766584452366,0.0001067,87313.0,87307.0,0.01145383]
[1766584452540,0.0001067,87313.0,87306.0,0.06872372]
[1766584452743,0.0001067,87313.0,87307.0,0.01145383]
[1766584453283,0.0001067,87313.0,87306.0,0.51994396]
[1766584453507,0.0001067,87313.0,87306.0,0.50849]
[1766584453707,0.0001067,87313.0,87306.0,0.51994396]
[1766584454237,0.0001067,87313.0,87306.0,0.57721369]
[1766584454446,0.0001067,87313.0,87307.0,0.01145383]
[1766584455040,0.0001067,87313.0,87306.0,0.50849]
[1766584455242,0.0001067,87313.0,87286.0,0.51994659]
[1766584455243,0.000549,87306.0,87286.0,0.51994659]
[1766584455468,0.01148,87305.0,87286.0,0.01145659]
[1766584455691,0.01148,87305.0,87288.0,0.01145632]
[1766584455861,0.01148,87305.0,87287.0,0.06873818]
[1766584456062,0.01148,87305.0,87292.0,0.0114558]
[1766584456242,0.01148,87305.0,87296.0,0.01145527]
[1766584456450,0.01148,87305.0,87297.0,0.06873069]
[1766584456644,0.0001067,87313.0,87297.0,0.06873069]
[1766584456645,0.01148,87304.0,87298.0,0.01145501]
[1766584456888,0.01148,87303.0,87296.0,0.06873114]
[1766584457087,0.01148,87303.0,87295.0,0.50849]
[1766584457289,0.01148,87306.0,87294.0,0.06873267]
[1766584457490,0.01148,87306.0,87295.0,0.50849]
[1766584457670,0.01148,87306.0,87295.0,0.5199454]
[1766584458067,0.01148,87306.0,87297.0,0.50849]
[1766584458866,0.01148,87306.0,87297.0,0.507941]
[1766584461793,0.01148,87306.0,87293.0,0.01145567]
[1766584462016,0.01148,87306.0,87293.0,0.06873394]
[1766584462225,0.01148,87306.0,87294.0,0.01145554]
[1766584463344,0.01148,87306.0,87295.0,0.06873186]
[1766584463549,0.01148,87306.0,87296.0,0.01145527]
[1766584463752,0.00011,87307.0,87296.0,0.06873146]
[1766584463952,0.01159,87307.0,87296.0,0.01145527]
[1766584464496,0.01159,87307.0,87295.0,0.06873186]
[1766584464903,0.01159,87307.0,87296.0,0.01145527]
[1766584465526,0.01159,87307.0,87295.0,0.0114554]
[1766584466201,0.01159,87307.0,87296.0,0.05727585]
[1766584466439,0.00011,87307.0,87297.0,0.06872957]
[1766584466646,0.0001067,87313.0,87307.0,0.05737858]
[1766584466794,0.0001067,87313.0,87311.0,0.05726655]
[1766584467015,0.0001067,87313.0,87310.0,0.01145344]
[1766584467177,0.0001067,87313.0,87310.0,0.06872046]
[1766584467560,0.0001067,87313.0,87310.0,0.01145344]
[1766584467715,7e-07,87313.0,87310.0,0.01145344]
[1766584467916,7e-07,87313.0,87312.0,0.05726589]
[1766584468116,7e-07,87313.0,87310.0,0.01145344]
[1766584468359,7e-07,87313.0,87309.0,0.01145357]
[1766584468690,7e-07,87313.0,87310.0,0.06872064]
[1766584468962,7e-07,87313.0,87311.0,0.05726642]
[1766584469361,7e-07,87313.0,87310.0,0.06872064]
[1766584469569,7e-07,87313.0,87311.0,0.05726638]
[1766584470342,7e-07,87313.0,87312.0,0.05726589]
[1766584471520,7e-07,87313.0,87310.0,0.01145344]
[1766584471730,7e-07,87313.0,87310.0,0.06872042]
[1766584471912,7e-07,87313.0,87310.0,0.01145344]
[1766584472041,7e-07,87313.0,87310.0,0.06872028]
[1766584473534,7e-07,87313.0,87311.0,0.05726624]
[1766584474085,7e-07,87313.0,87312.0,0.05726589]
[1766584481060,0.0002,87319.0,87316.0,0.01145265]
[1766584481693,0.0002,87319.0,87315.0,0.51095]
[1766584481894,0.0002,87319.0,87315.0,0.52240278]
[1766584482851,0.0002,87319.0,87315.0,0.51095]
[1766584483252,0.0002,87319.0,87315.0,0.52240278]
[1766584483473,0.0002,87319.0,87316.0,0.01145265]
[1766584483680,0.0002,87319.0,87316.0,0.06871582]
[1766584483880,0.0002,87319.0,87317.0,0.05726244]
[1766584484891,0.01173115,87320.0,87317.0,0.06871496]
[1766584485296,0.01173115,87320.0,87316.0,0.06871588]
[1766584485975,0.01173115,87320.0,87317.0,0.01145252]
[1766584486173,0.01173115,87320.0,87316.0,0.06871588]
[1766584486371,0.00025115,87320.0,87316.0,0.01145265]
[1766584486592,0.00458443,87330.0,87321.0,0.53813181]
[1766584486783,0.01148,87326.0,87321.0,0.469314]
[1766584487431,0.03083619,87337.0,87321.0,0.469314]
[1766584487605,0.08815619,87337.0,87321.0,0.469314]
[1766584487829,0.08815619,87337.0,87321.0,0.53802556]
[1766584488235,0.08815619,87337.0,87322.0,0.01145186]
[1766584488448,0.08815619,87337.0,87323.0,0.01145173]
[1766584488893,0.08815619,87337.0,87322.0,0.01145186]
[1766584489066,0.08815619,87337.0,87322.0,0.06871114]
[1766584489587,0.05732,87336.0,87322.0,0.06871114]
[1766584489789,0.01168,87335.0,87323.0,0.06871037]
[1766584489948,0.0002,87335.0,87324.0,0.0114516]
[1766584490155,0.01148,87334.0,87324.0,0.06870928]
[1766584490359,0.01148,87334.0,87323.0,0.01145173]
[1766584490667,0.0002,87335.0,87324.0,0.00114504]
[1766584490838,0.01148,87334.0,87326.0,0.01145134]
[1766584491042,0.01148,87334.0,87326.0,0.06870802]
[1766584491455,0.01148,87334.0,87326.0,0.01145134]
[1766584491658,0.01148,87334.0,87326.0,0.0687079]
[1766584492072,0.01148,87334.0,87327.0,0.01145121]
[1766584492285,0.01148,87334.0,87326.0,0.0687079]
[1766584492286,0.00025111,87328.0,87325.0,0.46942]
[1766584492479,0.012031,87327.0,87323.0,0.06870986]
[1766584492834,0.01148,87327.0,87322.0,0.01145186]
[1766584493492,0.01148,87327.0,87321.0,0.06871087]
[1766584493897,0.01148,87327.0,87323.0,0.01145173]
[1766584494030,0.01148,87327.0,87322.0,0.06871105]
[1766584494621,0.01148,87327.0,87323.0,0.01145173]
[1766584494826,0.01148,87327.0,87322.0,0.06871105]
[1766584495225,0.01148,87327.0,87321.0,0.06871087]
[1766584495664,0.01148,87327.0,87322.0,0.01145186]
[1766584495875,0.01148,87327.0,87321.0,0.01145199]
[1766584496100,0.01148,87327.0,87322.0,0.01145186]
[1766584496335,0.01148,87327.0,87324.0,0.0114516]
[1766584496464,0.010932,87327.0,87324.0,0.06870909]
[1766584496675,0.00025111,87328.0,87325.0,0.2404809]
[1766584496878,0.0002,87335.0,87326.0,0.01145134]
[1766584497078,0.01148,87332.0,87327.0,0.06870672]
[1766584497279,0.01148,87332.0,87326.0,0.06870792]
[1766584497538,0.01148,87332.0,87327.0,0.01145121]
[1766584497742,0.01148,87332.0,87326.0,0.06870792]
[1766584498046,0.01148,87332.0,87327.0,0.01145121]
[1766584498786,0.01148,87332.0,87329.0,0.06870563]
[1766584500227,0.0002,87335.0,87332.0,0.01145055]
[1766584500452,0.0002,87335.0,87334.0,0.05725147]
[1766584501121,0.0002,87335.0,87333.0,0.05725155]
[1766584501553,0.0002,87335.0,87334.0,0.05725147]
[1766584501754,0.0002,87340.0,87335.0,0.06870033]
[1766584501900,0.00055579,87340.0,87335.0,0.01145016]
[1766584502316,0.00055579,87340.0,87336.0,0.01145003]
[1766584502515,0.00055579,87340.0,87336.0,0.06870009]
[1766584502726,0.01148,87339.0,87335.0,0.06870076]
[1766584503516,0.01148,87339.0,87334.0,0.06870057]
[1766584503736,0.01148,87339.0,87335.0,0.01145016]
[1766584503895,0.01148,87339.0,87336.0,0.01145003]
[1766584504305,0.01148,87339.0,87335.0,0.06870065]
[1766584504493,0.01148,87339.0,87335.0,0.01145016]
[1766584504691,0.01148,87339.0,87333.0,0.01145042]
[1766584505005,0.00055579,87340.0,87334.0,0.1203679]
[1766584505230,0.06167238,87350.0,87343.0,0.44511]
[1766584505231,0.01148,87350.0,87343.0,0.44511]
[1766584505451,0.01158669,87350.0,87343.0,0.44511]
[1766584505591,0.01158669,87350.0,87337.0,0.44511]
[1766584505798,0.001099,87337.0,87331.0,0.01145068]
[1766584506098,0.01148,87341.0,87332.0,0.01145055]
[1766584506284,0.01148,87341.0,87330.0,0.06870489]
[1766584506285,0.01148,87341.0,87331.0,0.06870379]
[1766584506487,0.01148,87341.0,87332.0,0.01145055]
[1766584506665,0.01148,87341.0,87333.0,0.01145042]
[1766584506893,0.01148,87341.0,87332.0,0.01145055]
[1766584507093,0.01148,87341.0,87333.0,0.01145042]
[1766584507426,0.01148,87341.0,87332.0,0.0687028]
[1766584507762,0.01148,87341.0,87333.0,0.01145042]
[1766584508174,0.01148,87341.0,87330.0,0.06870434]
[1766584508371,0.01148,87341.0,87331.0,0.01145068]
[1766584508571,0.01148,87341.0,87328.0,0.51381607]
[1766584509278,0.01148,87341.0,87329.0,0.01145094]
[1766584510548,0.01148,87341.0,87328.0,0.44511]
[1766584510749,0.01148,87341.0,87329.0,0.01145094]
[1766584510898,0.01148,87341.0,87328.0,0.45656108]
[1766584511156,0.01148,87341.0,87328.0,0.444561]
[1766584511753,0.01148,87341.0,87312.0,0.05725317]
[1766584511754,0.01148,87341.0,87322.0,0.44511]
[1766584511916,0.01148,87341.0,87322.0,0.44456]
[1766584512116,0.01148,87341.0,87305.0,0.01145409]
[1766584512117,0.03081444,87340.0,87313.0,0.44511]
[1766584512343,0.03081444,87336.0,87305.0,0.01148]
[1766584512567,0.03081444,87336.0,87307.0,0.11922299]
[1766584512774,0.03081444,87335.0,87307.0,0.11922299]
[1766584513149,0.06519648,87335.0,87304.0,0.01148]
[1766584513354,0.06519648,87335.0,87302.0,0.45656449]
[1766584513553,0.06519648,87335.0,87305.0,0.11922299]
[1766584514758,0.06519648,87335.0,87302.0,0.44511]
[1766584516396,0.06519648,87335.0,87302.0,0.45656449]
[1766584517154,0.06519648,87335.0,87304.0,0.11922299]
[1766584517951,0.06519648,87335.0,87305.0,0.05727029]
[1766584518377,0.06519648,87335.0,87306.0,0.01145396]
[1766584518705,0.06519648,87335.0,87308.0,0.0114537]
[1766584518905,0.06519648,87335.0,87313.0,0.01145304]
[1766584519104,0.06519648,87335.0,87316.0,0.44511]
[1766584519105,0.05728,87334.0,87316.0,0.44511]
[1766584519625,0.05728,87334.0,87310.0,0.01148]
[1766584520207,0.05728,87334.0,87309.0,0.44511]
[1766584521854,0.17650299,87334.0,87309.0,0.44511]
[1766584522032,0.05903264,87333.0,87309.0,0.45656357]
[1766584522434,0.05903264,87333.0,87310.0,0.01145344]
[1766584522640,0.05903264,87333.0,87311.0,0.01145331]
[1766584522840,0.05903264,87333.0,87311.0,0.45656331]
[1766584523046,0.05903264,87333.0,87312.0,0.45656317]
[1766584523246,0.05903264,87333.0,87312.0,0.51382846]
[1766584523726,0.05903264,87333.0,87313.0,0.44511]
[1766584526102,0.05903264,87333.0,87308.0,0.0114537]
[1766584526273,0.05903264,87333.0,87309.0,0.01145357]
[1766584526453,0.05903264,87333.0,87309.0,0.06872139]
[1766584526639,0.05903264,87333.0,87309.0,0.01145357]
[1766584527081,0.05728,87332.0,87309.0,0.01145357]
[1766584527285,0.05728,87332.0,87307.0,0.66233184]
[1766584527490,0.05728,87332.0,87307.0,0.59361]
[1766584527846,0.05728,87332.0,87307.0,0.44511]
[1766584528247,0.05728,87332.0,87308.0,0.0114537]
[1766584528489,0.05728,87332.0,87307.0,0.44511]
[1766584528699,0.05728,87332.0,87307.0,0.45656383]
[1766584529073,0.05728,87332.0,87309.0,0.44738357]
[1766584529274,0.05728,87332.0,87311.0,0.01145331]
[1766584529471,0.05728,87332.0,87310.0,0.06872047]
[1766584529678,0.02465155,87333.0,87309.0,0.43593]
[1766584529902,0.06155796,87347.0,87304.0,0.35976164]
[1766584529903,0.08017916,87338.0,87326.0,0.44738134]
[1766584530105,0.01148,87337.0,87326.0,0.43593]
[1766584530906,0.01148,87337.0,87320.0,0.43260709]
[1766584531108,0.01148,87337.0,87315.0,0.01145278]
[1766584531352,0.01148,87337.0,87316.0,0.057262]
[1766584531642,0.01148,87337.0,87316.0,0.06871465]
[1766584531787,0.01148,87337.0,87317.0,0.01145252]
[1766584532182,0.01148,87337.0,87319.0,0.06871345]
[1766584532493,0.01148,87337.0,87320.0,0.01145213]
[1766584533092,0.01148,87337.0,87316.0,0.01145265]
[1766584533294,0.01148,87337.0,87318.0,0.01145239]
[1766584533499,0.01148,87337.0,87319.0,0.01145226]
[1766584534149,0.01148,87337.0,87317.0,0.06871501]
[1766584534449,0.01148,87337.0,87318.0,0.01145239]
[1766584534845,0.01148,87337.0,87319.0,0.01145226]
[1766584535191,0.11922299,87335.0,87321.0,0.01145199]
[1766584535391,0.11922299,87335.0,87320.0,0.01145213]
[1766584535715,0.11922299,87335.0,87319.0,0.01145226]
[1766584535917,0.11922299,87335.0,87319.0,0.06871343]
[1766584536144,0.11922299,87335.0,87320.0,0.01145213]
[1766584536362,0.11922299,87335.0,87319.0,0.06871343]
[1766584536756,0.11922299,87335.0,87320.0,0.01145213]
[1766584537159,0.11922299,87335.0,87319.0,0.06871343]
[1766584537384,0.000549,87319.0,87316.0,0.43593]
[1766584537583,0.01148,87320.0,87316.0,0.43593]
[1766584537759,0.01093,87320.0,87316.0,0.43593]
[1766584538802,0.01093,87320.0,87316.0,0.43628579]
[1766584539417,0.01093,87320.0,87316.0,0.42760579]
[1766584539618,0.01093,87320.0,87303.0,0.22908574]
[1766584539619,0.00055,87316.0,87306.0,0.01145396]
[1766584539817,0.00055,87316.0,87305.0,0.43593]
[1766584540026,0.00055,87316.0,87305.0,0.4360367]
[1766584540173,0.01093,87320.0,87305.0,0.4360367]
[1766584541156,0.01093,87320.0,87305.0,0.0001067]
[1766584541636,0.000106,87305.0,87293.0,0.01145567]
[1766584541846,0.0458,87331.0,87293.0,0.01145567]
[1766584541847,0.01148,87304.0,87296.0,0.01145527]
[1766584542067,0.01103772,87304.0,87298.0,0.01145501]
[1766584542385,0.01103772,87304.0,87300.0,0.01145475]
[1766584542834,0.01103772,87304.0,87301.0,0.01145462]
[1766584543188,0.01103772,87304.0,87300.0,0.06872788]
[1766584543375,0.01103772,87304.0,87301.0,0.06872772]
[1766584543569,0.01103772,87304.0,87301.0,0.06872766]
[1766584545558,0.01103772,87304.0,87302.0,0.05727245]
[1766584545805,0.01103772,87304.0,87301.0,0.06872752]
[1766584546344,0.01103772,87304.0,87301.0,0.06872764]
[1766584546540,0.01103772,87304.0,87302.0,0.05727187]
[1766584550336,0.03438625,87319.0,87315.0,0.05726337]
[1766584550551,0.04584,87324.0,87317.0,0.49216202]
[1766584550770,0.11922299,87341.0,87316.0,0.01145265]
[1766584550771,0.05548929,87337.0,87322.0,0.01145186]
[1766584550970,0.05548929,87337.0,87321.0,0.01145199]
[1766584550971,0.04584,87332.0,87321.0,0.06871143]
[1766584551159,0.04584,87332.0,87319.0,0.0572607]
[1766584551365,0.04584,87332.0,87318.0,0.44635239]
[1766584551579,0.04584,87332.0,87319.0,0.01145226]
[1766584552185,0.04584,87332.0,87318.0,0.44635239]
[1766584552353,0.04584,87332.0,87319.0,0.01145226]
[1766584552531,0.04584,87332.0,87320.0,0.06871251]
[1766584552742,0.01148,87331.0,87320.0,0.01145213]
[1766584552954,0.01148,87331.0,87319.0,0.01145226]
[1766584553372,0.01148,87331.0,87319.0,0.06871348]
[1766584553664,0.01148,87331.0,87321.0,0.01145199]
[1766584553889,0.03473608,87337.0,87320.0,0.01145213]
[1766584554086,0.03473608,87337.0,87320.0,0.06871219]
[1766584554205,0.05732,87336.0,87320.0,0.06871219]
[1766584555387,0.05732,87336.0,87320.0,0.01145213]
[1766584555589,0.05728,87335.0,87321.0,0.01145199]
[1766584556065,0.05728,87335.0,87322.0,0.01145186]
[1766584556424,0.05728,87335.0,87322.0,0.06871116]
[1766584556657,0.05728,87335.0,87323.0,0.01145173]
[1766584556859,0.03473608,87337.0,87320.0,0.01145213]
[1766584556860,0.00035601,87337.0,87327.0,0.01145121]
[1766584557069,0.01148,87336.0,87327.0,0.06870699]
[1766584557876,0.01148,87336.0,87326.0,0.01145134]
[1766584558213,0.01148,87336.0,87325.0,0.01145147]
[1766584558418,0.01148,87336.0,87325.0,0.06870871]
[1766584558797,0.01148,87336.0,87327.0,0.01145121]
[1766584558996,0.01148,87336.0,87328.0,0.01145108]
[1766584562541,0.01148,87336.0,87328.0,0.01145108]
[1766584563130,0.01148,87336.0,87326.0,0.01145134]
[1766584563573,0.01148,87336.0,87327.0,0.06870691]
[1766584563902,0.01148,87336.0,87328.0,0.01145108]
[1766584564104,0.01148,87336.0,87327.0,0.06870691]
[1766584564313,0.01148,87336.0,87326.0,0.06870747]
[1766584564515,0.01148,87336.0,87327.0,0.01145121]
[1766584564726,0.05728,87335.0,87327.0,0.01145121]
[1766584564946,0.05728,87335.0,87326.0,0.06870747]
[1766584565329,0.05728,87335.0,87325.0,0.41499]
[1766584565534,0.00035601,87337.0,87325.0,0.41499]
[1766584565697,0.01148,87336.0,87325.0,0.41499]
[1766584566342,0.000549,87325.0,87318.0,0.41499]
[1766584566571,0.01148,87326.0,87318.0,0.42554193]
[1766584566996,0.01148,87326.0,87316.0,0.1485]
[1766584567157,0.01148,87326.0,87316.0,0.15995265]
[1766584567358,0.01148,87326.0,87316.0,0.56349]
[1766584570323,0.01148,87326.0,87316.0,0.147951]
[1766584571783,0.01148,87326.0,87315.0,0.01145278]
[1766584571969,0.01148,87326.0,87314.0,0.06871746]
[1766584572149,0.01148,87326.0,87314.0,0.01145291]
[1766584573317,0.01148,87326.0,87316.0,0.01145265]
[1766584573478,0.01148,87326.0,87316.0,0.06871583]
[1766584573656,0.01148,87326.0,87317.0,0.01145252]
[1766584574209,0.01148,87326.0,87316.0,0.06871583]
[1766584574412,0.01148,87326.0,87316.0,0.01145265]
[1766584574846,0.01148,87326.0,87317.0,0.01145252]
[1766584575257,0.01148,87326.0,87317.0,0.06871504]
[1766584575384,0.01148,87326.0,87318.0,0.01145239]
[1766584575616,0.01148,87326.0,87317.0,0.06871504]
[1766584575817,0.01148,87326.0,87318.0,0.06871389]
[1766584576028,0.01148,87326.0,87321.0,0.01145199]
[1766584576435,1e-06,87326.0,87323.0,0.41499]
[1766584576797,0.01148,87328.0,87323.0,0.41499]
[1766584577115,0.04615601,87337.0,87323.0,0.41499]
[1766584577116,0.00035601,87337.0,87323.0,0.41499]
[1766584577323,0.01148,87336.0,87323.0,0.4837001]
[1766584577518,0.01148,87336.0,87325.0,0.42644147]
[1766584578979,0.01148,87336.0,87325.0,0.41499]
[1766584580487,0.01148,87336.0,87324.0,0.0114516]
[1766584580888,0.05728,87335.0,87324.0,0.06870947]
[1766584581690,0.05728,87334.0,87324.0,0.06870947]
[1766584581861,0.01148,87333.0,87325.0,0.01145147]
[1766584582075,0.00035601,87337.0,87325.0,0.01145147]
[1766584582076,0.01148,87332.0,87325.0,0.01145147]
[1766584582281,0.01148,87331.0,87325.0,0.42644147]
[1766584582648,0.00035601,87337.0,87325.0,0.42644147]
[1766584582856,0.05728,87336.0,87325.0,0.42644147]
[1766584583059,0.05728,87336.0,87326.0,0.42644134]
[1766584583665,0.05728,87335.0,87326.0,0.48369797]
[1766584583849,0.00035601,87337.0,87326.0,0.48369797]
[1766584584051,0.01148,87334.0,87326.0,0.41499]
[1766584585876,0.01148,87334.0,87326.0,0.26647295]
[1766584587664,0.01148,87334.0,87326.0,0.27792429]
[1766584587831,0.01148,87334.0,87326.0,0.26647295]
[1766584588038,0.00035601,87337.0,87326.0,0.33518085]
[1766584588254,0.00035601,87337.0,87300.0,0.82201902]
[1766584588255,0.01148,87336.0,87334.0,0.06870131]